Cogmind - Beta 15 @@@ ROGUE MODE // 2025.06.21 @ 14:19:32 Player: luckinvolved Result: Destroyed by as-75306 with Assembled Blade Performance ------------- Evolutions (0) 0 Regions Visited (2) 400 Robots Destroyed (26) 130 Value Destroyed (654) 654 Prototype IDs (0) 0 Alien Tech Used (0) 0 Bonus (0) 0 TOTAL SCORE: 1184 Bonus ------- None Cogmind --------- Core Integrity 0/250 Matter 206/300 Energy 100/100 System Corruption 2% Temperature Cool (0) Movement Core (700) Ox13 Location -10/Mines Parts ------- > --- POWER (1) -------- (None) > --- PROPULSION (2) --- (None) > --- UTILITY (2) ------ High-capacity Storage Unit > --- WEAPON (2) ------- (None) > --- INVENTORY (20) --- Ion Engine Light Nuclear Core Light Treads Light Treads Heat Sink Improved Heat Sink Structural Scanner Improved Targeting Computer Improved Targeting Computer Improved Targeting Computer Power Shielding Light Armor Plating Hacking Suite Particle Gun Assault Rifle Assault Rifle Assault Rifle Assault Rifle Datajack Mace Peak State ------------ > --- POWER ------------ Light Ion Engine > --- PROPULSION ------- Light Treads Light Treads > --- UTILITY ---------- Small Storage Unit Core Shielding > --- WEAPON ----------- Improved Light Cannon Improved Light Cannon > --- INVENTORY -------- Light Ion Engine Wheel Structural Scanner Power Shielding Hacking Suite Assault Rifle Assault Rifle Grenade Launcher [Rating: 10] Favorites ----------- Power Light Ion Engine Engine Light Ion Engine Propulsion Light Treads Treads Light Treads Wheel Wheel Utility Core Shielding Device Seismic Detector Storage High-capacity Storage Unit Protection Core Shielding Weapon Assault Rifle Ballistic Gun Assault Rifle Ballistic Cannon Improved Light Cannon Launcher Grenade Launcher Build | -11 -10 -10 ------- Run | Yrd Mat Min Slots Evolved . | . . . Power . | . . . Propulsion . | . . . Utility . | . . . Weapon . | . . . Parts Attached 21 | 7 11 3 Power 2 | 1 1 . Engine 2 | 1 1 . Core . | . . . Reactor . | . . . Propulsion 5 | 2 2 1 Treads 4 | 2 2 . Leg . | . . . Wheel 1 | . . 1 Hover . | . . . Flight . | . . . Utility 6 | 2 4 . Device 2 | 1 1 . Storage 3 | 1 2 . Processor . | . . . Hackware . | . . . Protection 1 | . 1 . Artifact . | . . . Weapon 8 | 2 4 2 Energy Gun . | . . . Energy Cannon . | . . . Ballistic Gun 4 | 2 2 . Ballistic Cannon 2 | . 2 . Launcher 2 | . . 2 Special Weapon . | . . . Impact Weapon . | . . . Slashing Weapon . | . . . Piercing Weapon . | . . . Special Melee Weapon . | . . . Unidentified Prototypes . | . . . Parts Lost 9 | . 3 6 Power 2 | . 1 1 Propulsion 4 | . 2 2 Utility 1 | . . 1 Weapon 2 | . . 2 Highest Loss Streak 6 | . 2 6 To Critical Strikes . | . . . Average Backups 12 | 3 11 20 Power 1 | . 1 2 Propulsion 1 | 2 1 2 Utility 4 | . 4 9 Weapon 3 | . 3 6 Tool/Special . | . . . Unused Backups 16 | 1 5 10 Power 3 | . 1 2 Propulsion 3 | 1 1 1 Utility 7 | . 2 5 Weapon 2 | . 1 1 Tool/Special 1 | . . 1 Average Slot Usage (%) 99 | . 99 95 Engine 13 | . 14 13 Treads 27 | . 27 25 Storage 14 | . 14 14 Protection 12 | . 12 13 Ballistic Gun 23 | . 23 23 Ballistic Cannon 4 | . 4 . Peak Build Rating 10 | 7 10 10 Average Rating 8 | 5 8 9 On Entrance 5 | . 7 10 Naked Turns . | . . . Heaviest Build 52 | 13 50 52 Greatest Support 40 | 40 40 40 Greatest Overweight (x) 4 | . 1 4 Average Overweight (x) . | . . 1 Largest Inventory Capacity 20 | 8 20 20 Average Capacity 15 | 7 15 20 Most Carried 20 | 5 20 20 Average Carried 12 | 3 11 20 Final Capacity 20 | 8 20 20 Final Carried 20 | 5 20 20 Class Distribution -------------------- 100% | Mutant Dominant Class ---------------- Mutant | -10/Materials Mutant | -10/Mines Resources | -11 -10 -10 ----------- Run | Yrd Mat Min Matter Collected 851 | 300 535 16 Remotely . | . . . Salvage Created 973 | 108 836 29 Parts 54 | 8 46 . Haulers Intercepted 2 | . 2 . Recyclers Shooed . | . . . Parts Field Recycled . | . . . Retrieved Matter . | . . . Parts Self-Destructed . | . . . Prevented . | . . . Kills | -11 -10 -10 ------- Run | Yrd Mat Min Combat Hostiles Destroyed 18 | . 13 5 Guns 9 | . 9 . Cannons 4 | . 4 . AOE 5 | . . 5 Classes Destroyed 8 | 2 5 1 Builder 1 | . 1 . Tunneler 2 | 2 . . Hauler 2 | . 2 . Recycler 4 | 1 3 . Operator 1 | . 1 . Watcher 1 | . 1 . Grunt 15 | . 13 2 Assembled 3 | . . 3 Best Kill Streak 3 | 3 3 3 Combat Bots Only 3 | . 2 3 Max Kills in Single Turn 2 | 1 1 2 Gunslinging . | . . . Exploded 2 | . . 2 Melee . | . . . Uniques/NPCs Destroyed . | . . . Combat | -11 -10 -10 -------- Run | Yrd Mat Min Hostile Shots Fired 110 | . 72 38 Missed 23 | . 15 8 Hits 87 | . 57 30 Melee 15 | . . 15 Projectile 72 | . 57 15 Damage Taken 1372 | . 714 658 Core 271 | . 74 197 Absorbed by Shields . | . . . Redirected to Shielding 45 | . 17 28 Regen/Repaired (Parts) 127 | . 127 . Core Remaining (%) 100 | 100 . . Volleys Fired 73 | 5 64 4 Largest 2 | 2 2 2 Hottest 66 | 40 66 60 Shots Fired 145 | 10 128 7 Gun 102 | 10 92 . Cannon 36 | . 36 . Launcher 7 | . . 7 Special . | . . . Kinetic 138 | 10 128 . Thermal . | . . . Explosive 7 | . . 7 Electromagnetic . | . . . Robot Hit Streak 11 | 4 11 4 Robot Miss Streak 3 | 1 3 2 Penetration Max . | . . . Secondary Targets . | . . . Shots Hit Robots 99 | 6 89 4 Core Hits 54 | 3 36 15 Critical Kills . | . . . Critical Parts Destroyed . | . . . Critical Strikes 3 | . 3 . Blast 3 | . 3 . Melee Attacks . | . . . Impact . | . . . Slashing . | . . . Piercing . | . . . Sneak Attacks . | . . . Combat Hostiles . | . . . Follow-up Attacks . | . . . Damage Inflicted 1894 | 76 1307 511 Guns 868 | 76 792 . Cannons 515 | . 515 . Explosions 511 | . . 511 Melee . | . . . Ramming . | . . . Kinetic 1383 | 76 1307 . Thermal . | . . . Explosive 511 | . . 511 Electromagnetic . | . . . Impact . | . . . Slashing . | . . . Piercing . | . . . Highest Corruption 2 | . . 2 Average Corruption 2 | . . 2 Corruption Purged . | . . . Corruption Blocked . | . . . Overload Shots . | . . . Overflow Damage 10 | . . 10 Projectiles . | . . . Explosions 10 | . . 10 Melee . | . . . Knockbacks 7 | . 7 . Impact . | . . . Kinetic 6 | . 6 . Secondary 1 | . 1 . Self-Inflicted Damage . | . . . Shots . | . . . Rammed . | . . . Targets Rammed . | . . . Kicked . | . . . Crushed . | . . . Highest Temperature 105 | . 105 24 Average Temperature 29 | . 31 16 Received Heat Transfer 501 | . 402 99 Siege Activations . | . . . Martial Activations . | . . . Shielding Activations . | . . . Robots Disrupted . | . . . Combat Hostiles . | . . . Robots Corrupted . | . . . Combat Hostiles . | . . . Parts Fried . | . . . Impact Corruptions . | . . . Robots Melted . | . . . Combat Hostiles . | . . . Parts Melted . | . . . Heat Transferred . | . . . Parts Sabotaged . | . . . Parts Stolen . | . . . Parts Stripped . | . . . Power Chain Reactions . | . . . Alert | -11 -10 -10 ------- Run | Yrd Mat Min Maximum Alert Level . | . . . Low Security (%) 100 | 100 100 100 Level 1 . | . . . Level 2 . | . . . Level 3 . | . . . Level 4 . | . . . Level 5 . | . . . High Security . | . . . Max Security . | . . . Peak Influence 91 | 10 91 66 Initial . | . . . Average 25 | 1 29 12 Influence Increases 504 | 15 395 94 Destroy 0b10 Robot/C 300 | . 260 40 Destroy 0b10 Robot/NC 55 | 15 40 . Destroy Leader 76 | . 66 10 Successful Hack 11 | . 11 . Destroy Structure 47 | . 3 44 Lose Combat Pursuer 15 | . 15 . Influence Decreases 504 | 15 395 94 Time Decay 452 | 15 365 72 Lost Part 52 | . 30 22 Squads Dispatched 2 | . 2 . Investigation . | . . . Extermination . | . . . Reinforcement 2 | . 2 . Assault . | . . . Garrison . | . . . Intercept . | . . . Searches Triggered . | . . . Construction Impeded . | . . . Haulers Reinforced . | . . . Active Scanning Responses . | . . . Cargo Convoy Interrupts . | . . . Stealth | -11 -10 -10 --------- Run | Yrd Mat Min Distress Signals 2 | . 2 . Communications Jammed . | . . . Distress Signals . | . . . Times Spotted 39 | . 17 22 Peak Tracking Total 20 | . 2 20 Tactical Retreats 3 | . 1 2 Traps | -11 -10 -10 ------- Run | Yrd Mat Min Traps Triggered . | . . . Indirectly . | . . . Trap Hack Attempts . | . . . Triggered . | . . . Disarmed . | . . . Reprogrammed . | . . . Reused 2 | . . 2 Traps Extracted . | . . . Installed 2 | . . 2 Triggered . | . . . Machines | -11 -10 -10 ---------- Run | Yrd Mat Min Machines Disabled . | . . . Max in Single Turn . | . . . Machines Repaired . | . . . Machines Dismantled . | . . . Machines Sabotaged . | . . . Overloaded Fab Kills . | . . . Hacking | -11 -10 -10 --------- Run | Yrd Mat Min Machines Accessed 5 | . 5 . Terminals 4 | . 4 . Fabricators . | . . . Repair Stations 1 | . 1 . Recycling Units . | . . . Scanalyzers . | . . . Garrison Access . | . . . Total Hacks 13 | . 13 . Successful 7 | . 7 . Failed 6 | . 6 . Catastrophic 1 | . 1 . Database Lockouts . | . . . Manual 11 | . 11 . Terminals 11 | . 11 . Fabricators . | . . . Repair Stations 2 | . 2 . Recycling Units . | . . . Scanalyzers . | . . . Garrison Access . | . . . Terminal Hacks 1 | . 1 . Part Schematic 1 | . 1 . Fabricator Hacks . | . . . Repair Station Hacks 2 | . 2 . Scan Component 1 | . 1 . Repair 1 | . 1 . Recycling Unit Hacks . | . . . Scanalyzer . | . . . Garrison Access Hacks . | . . . Unauthorized Hacks 4 | . 4 . Terminals 4 | . 4 . Botnet 4 | . 4 . Fabricators . | . . . Repair Stations . | . . . Recycling Units . | . . . Scanalyzers . | . . . Garrison Access . | . . . Data Cores Recovered 1 | . 1 . Used . | . . . Hacking Detections 4 | . 4 . Full Trace Events . | . . . Feedback Events . | . . . Feedback Blocked . | . . . Robot Schematics Acquired . | . . . Robots Built . | . . . Authchips . | . . . Time . | . . . Total Robot Build Rating . | . . . Part Schematics Acquired 1 | . 1 . Parts Built . | . . . Authchips . | . . . Time . | . . . Total Part Build Rating . | . . . Parts Repaired 1 | . 1 . Time 26 | . 26 . Parts Recycled . | . . . Recycled Matter . | . . . Retrieved Matter . | . . . Retrieved Components . | . . . Parts Scanalyzed . | . . . Part Schematics Acquired . | . . . Parts Damaged . | . . . Bothacking | -11 -10 -10 ------------ Run | Yrd Mat Min Used RIF Installer . | . . . Robots Hacked . | . . . Non-combat . | . . . Combat . | . . . Robot Hacks Applied . | . . . Relay Couplers Released . | . . . Fabnet Peak Effective % . | . . . Robots Rewired . | . . . Allies Hacked . | . . . Hacks Repelled . | . . . Allies | -11 -10 -10 -------- Run | Yrd Mat Min Total Allies . | . . . Largest Group . | . . . Highest-Rated Group . | . . . Highest-Rated Ally . | . . . Total Orders . | . . . Ally Attacks . | . . . Total Damage . | . . . Kills . | . . . Allies Corrupted . | . . . Allies Melted . | . . . Intel | -11 -10 -10 ------- Run | Yrd Mat Min Active Infowar (turns) 178 | 33 145 . Structural 62 | . 62 . Seismic 116 | 33 83 . Robot Analysis Total . | . . . Derelict Logs Recovered . | . . . Drone Launches . | . . . Drone Recoveries . | . . . Exploration | -11 -10 -10 ------------- Run | Yrd Mat Min Turns Passed 2442 | 136 1974 332 Spaces Moved 1032 | 68 832 132 Core 10 | 10 . . Treads 1006 | 58 832 116 Legs . | . . . Wheels 16 | . . 16 Hover . | . . . Flight . | . . . Fastest Speed 50 | 50 160 140 Average Speed 191 | 143 189 227 Slowest Speed 240 | 160 240 240 Overloaded Moves . | . . . Propulsion Burnouts . | . . . Robots Hopped . | . . . Potential Cave-ins . | . . . Cave-ins Triggered . | . . . Exploration Rate (%) 46 | 6 98 34 Regions Visited 2 Branch Regions 1 Pre-discovered Areas . | . . . Known Exits Taken . | . . . Unknown Exits Taken 2 | 1 1 . Scrap Searched . | . . . Spaces Dug . | . . . Terrain Destroyed 50 | . . 50 Melee . | . . . Projectile . | . . . AOE 50 | . . 50 Terrain Rammed . | . . . Walls Destroyed . | . . . Machines Disabled . | . . . Actions | -11 -10 -10 --------- Run | Yrd Mat Min Total 1348 | 94 1101 153 Wait 173 | 7 158 8 Move 1030 | 67 831 132 Hop . | . . . Pick Up 29 | 7 22 . Fast Attach 12 | 6 6 . Attach 4 | 1 3 . Detach 2 | . 2 . Swap 11 | . 4 7 Drop 12 | 1 11 . Fire 73 | 5 64 4 Melee . | . . . Ram . | . . . Kick . | . . . Crush . | . . . Escape Stasis . | . . . Rewire . | . . . Trap 2 | . . 2 Miscellaneous . | . . . Route ------- -11/Scrapyard -10/Materials (discovered 6 exits: [*Mat x3] / [*Min x2] / [*Sub]) -10/Mines History --------- Turn | Location | Event 12 | -11/Scrapyard | Discovered new exit (range 16) 137 | -11/Scrapyard | Entered Materials 138 | -10/Materials | Met a group of wandering Federalists 304 | -10/Materials | Build established: Mutant 318 | -10/Materials | Discovered new exit (range 13) 777 | -10/Materials | Discovered new exit (range 9) 1112 | -10/Materials | Discovered new exit (range 9) 1327 | -10/Materials | Discovered new exit (range 9) 1735 | -10/Materials | Discovered new exit (range 8) 1785 | -10/Materials | Repaired Lgt. Treads 1820 | -10/Materials | Discovered new exit (range 6) 2111 | -10/Materials | Entered Mines 2361 | -10/Mines | Found a hidden stash of uninstalled traps 2386 | -10/Mines | Assembled infested the area 2432 | -10/Mines | Core integrity fell below 50% 2439 | -10/Mines | Core integrity fell below 20% 2443 | -10/Mines | Destroyed by as-75306 with Assembled Blade Last Messages --------------- 02431_ Field strength at 93. 02434_ Field strength at 86. 02435_ as-83995 triggered Stasis Trap. 02435_ A bubble of rippling energy engulfs the area. 02435_ Field strength at 93. 02436_ Wheel destroyed. 02436_ as-40807 sneak attacks. 02436_ T-07 Excavator system corrupted by crushing effect. 02436_ T-07 Excavator knocked back. 02437_ T-07 Excavator system terminally corrupted. 02437_ Field strength at 79. 02438_ Field strength at 72. 02439_ Field strength at 65. 02439_ Core Shielding destroyed. 02439_ System corrupted by crushing effect (+2). 02439_ Knocked back. 02439_ Field strength at 86. 02440_ Field strength at 79. 02441_ Field strength at 72. 02442_ Field strength at 65. Map ----- +----------------------------------------------------+ | ???????????????????????????????????? | | ???????????????????????????????????? | | ???????????????????????????????????? | | ??????? # ###???????????????????? | | ??????? ##????????????????? | | ???????? % #####???????????? | | ???????????# #???????????? | | ???????????# $ #???????????? | | ???????????# # #??????????? | | ???????????# #?# | ??????????? | | ???????????## #???## *% ####??????? | | ??????????????????# ##?????? | | ??????????????????# #?????? | | ??????????????????# #?????? | | ????????????????????# ##?????? | | ????????????????????# #?????? | | ????????????????????# #?????? | | ????????????????????# ### #?????? | | ????????????????????# ##?# !#?????? | | ????????????????????####??#!%#?????? | | ??????????????????????????#^&#?????? | | ?????????????????????????##a ##????? | | ?????????????????????????# &&#????? | | ?????????????????????????# %##???? | | ????????????????????######a #???? | | ???????????????????## ##@a #???? | | ??????????????????## a #???? | | ?????????????????## ##???? | | ????????##??????## ###????? | | ???????## #?????# ##??????? | | ???????# #????# #???????? | | ??????## ##??## ##??????? | | ?###??# ##?## #??????? | | ?# ### ### #??????? | | ?# #?# #??????? | | ?# ##??# #??????? | | ?## ##?### ##??????? | | ??# ###?# #???????? | | ?## ### ### ##???????? | | ?# ##??###?#####??? | | ?# #??????## ##?? | | ?# ##?????## #?? | | ?## ######?# #?? | | ??## #?# ##? | | ???## ##### ### # #? | | ????##### ##???# ## #?? | | ????????## ##????# ## # ##? | | ?????????### ##?#### ## #? | | ???????????## ### #? | | ????????????# ##? | +----------------------------------------------------+ Best States ------------- Heat Dissipation 25 Energy Generation 10 Energy Capacity 250 Matter Stores 300 Matter Capacity 300 Sight Range 16 Terrain Scan Density 10 Core Shielding 20 Evasion (%) 50 Recoil Reduction 2 Item Schematics ----------------- Huge Storage Unit | -10/Materials | Hacked Robot Schematics ------------------ None Fabricated ------------ Nothing Repaired ---------- Lgt. Treads | 9% | -10/Materials Alien Tech Used ----------------- None Achievements -------------- None Challenges ------------ None Game ------ Seed AdvancedStrikeMicroactuators Manual? 0 Play Time 00:15:47 Cumulative 109.8 hours Start 2025.06.20 @ 15:02:01 End 2025.06.21 @ 14:19:32 Sessions 3 Manual Loads 0 Difficulty Rogue Special Mode None Game No. 149 Rogue 144 Adventurer 5 Explorer 0 Win Type - Total 3 Types 2/0/0/1/0/0/0/0/0/0 Lore% 29 Gallery% 56 Achievement% 52 Wizard Run 0 Options --------- Layout 0 ASCII 0 Keyboard 0 Movement Mouse Keybinds 0 Fullscreen 1 Font 24/Smallcaps Map View 76x50 Zoom Use 14% Tactical HUD 1 Map Filters NONE Filters NONE Steam 1 RUN: 1110d9bb-dfe2-4ada-8b13-5c65dd932828